bitfinex-derivatives/quotes_ETHF0:USTF0_20240817
["timestamp","ask_amount","ask_price","bid_price","bid_amount"]
[1723880606319,3.86098966,2598.4,2598.3,4.22249486]
[1723880606908,5.8804128,2598.4,2598.3,4.22249486]
[1723880607407,3.86098966,2598.4,2598.3,4.22249486]
[1723880608325,3.86098556,2598.4,2598.3,4.22249486]
[1723880608910,3.86098355,2598.4,2598.3,4.22249486]
[1723880610013,5.37381451,2598.4,2598.3,4.22249486]
[1723880610320,3.86098355,2598.4,2598.3,4.22249486]
[1723880612934,3.86098355,2598.4,2598.3,3.85179486]
[1723880613218,3.75636439,2598.4,2598.3,3.85179486]
[1723880613423,3.86098265,2598.4,2598.3,3.85179486]
[1723880614524,3.86098136,2598.4,2598.3,3.85179486]
[1723880616826,3.86098203,2598.4,2598.3,3.85179486]
[1723880617026,2.75098203,2598.4,2598.3,3.85179486]
[1723880617229,3.86098203,2598.4,2598.3,3.85179486]
[1723880621822,3.75636439,2598.4,2598.3,3.85179486]
[1723880622021,3.86098042,2598.4,2598.3,3.85179486]
[1723880623124,5.88040356,2598.4,2598.3,3.85179486]
[1723880624325,5.88040356,2598.4,2598.3,4.85994257]
[1723880625636,5.88040378,2598.4,2598.3,4.85994257]
[1723880626335,5.88040378,2598.4,2598.3,1.01114257]
[1723880627031,7.80420378,2598.4,2598.3,0.00299486]
[1723880627225,6.02450018,2598.4,2598.3,0.00299486]
[1723880627625,8.54898592,2598.4,2598.3,0.00299486]
[1723880634032,8.54898931,2598.4,2598.3,0.00299486]
[1723880634433,8.54900581,2598.4,2598.3,0.00299486]
[1723880635640,8.5490052,2598.4,2598.3,0.00299486]
[1723880639239,8.5490052,2598.4,2598.3,1.01114257]
[1723880639633,5.5152052,2598.4,2598.3,1.01114257]
[1723880639941,0.71601946,2598.4,2598.3,8.70800513]
[1723880640149,0.71601946,2598.4,2598.3,7.15022257]
[1723880640445,2.73538977,2598.4,2598.3,9.07442507]
[1723880641446,2.49566684,2598.4,2598.3,9.57760224]
[1723880642043,2.49566684,2598.4,2598.3,9.57751377]
[1723880642646,0.47629653,2598.4,2598.3,9.57751377]
[1723880645343,0.37166439,2598.4,2598.3,5.72871377]
[1723880645548,0.4762726,2598.4,2598.3,5.72871377]
[1723880645944,0.37166439,2598.4,2598.3,5.72871377]
[1723880646145,0.47627249,2598.4,2598.3,5.72871377]
[1723880646642,1.99037958,2598.4,2598.3,5.72865899]
[1723880646846,3.12937031,2598.5,2598.4,3.8488]
[1723880646847,1.5140262,2598.5,2598.4,3.8488]
[1723880647148,0.10457902,2598.5,2598.4,20.14219957]
[1723880647446,0.00577212,2598.6,2598.5,1.92373]
[1723880647652,0.00577212,2598.6,2598.5,13.92316588]
[1723880647850,0.00971526,2598.6,2598.5,23.0809974]
[1723880648546,0.00971526,2598.6,2598.5,17.30933781]
[1723880648752,0.00971526,2598.6,2598.5,19.23313231]
[1723880649545,0.00971526,2598.6,2598.5,17.21785602]
[1723880649746,0.00971526,2598.6,2598.5,13.72848474]
[1723880650246,0.00971526,2598.6,2598.5,18.72848474]
[1723880650649,0.00971526,2598.6,2598.5,17.21785602]
[1723880651548,0.00971526,2598.6,2598.5,18.72770941]
[1723880651844,0.00971526,2598.6,2598.5,18.72771834]
[1723880652254,0.00971526,2598.6,2598.5,21.93551834]
[1723880653850,0.00971526,2598.6,2598.5,20.42566495]
[1723880654058,0.00971526,2598.6,2598.5,21.93551834]
[1723880654357,0.00971526,2598.6,2598.5,21.43198665]
[1723880654656,0.00971526,2598.6,2598.5,21.43198059]
[1723880655157,0.00971526,2598.6,2598.5,16.43198059]
[1723880655753,0.00971526,2598.6,2598.5,21.43205373]
[1723880655953,0.00971526,2598.6,2598.5,20.42573809]
[1723880656148,0.00971526,2598.6,2598.5,21.43195956]
[1723880656451,0.00971526,2598.6,2598.5,21.43189542]
[1723880656653,0.00971526,2598.6,2598.5,20.42573809]
[1723880657047,0.00971526,2598.6,2598.5,21.43189131]
[1723880657251,0.00971526,2598.6,2598.5,20.42573809]
[1723880657449,0.00971526,2598.6,2598.5,21.43178159]
[1723880658054,0.00971526,2598.6,2598.5,16.43178159]
[1723880659349,0.00971526,2598.6,2598.5,14.50790502]
[1723880659956,0.00971526,2598.6,2598.5,13.22395897]
[1723880660158,0.00971526,2598.6,2598.5,14.50790502]
[1723880660862,0.00971526,2598.6,2598.5,16.43175849]
[1723880663156,0.00971526,2598.6,2598.5,14.50790502]
[1723880663664,0.00971526,2598.6,2598.5,16.43170837]
[1723880665156,0.00971526,2598.6,2598.5,14.50790502]
[1723880667659,0.00971526,2598.6,2598.5,11.30010502]
[1723880668060,0.00971526,2598.6,2598.5,14.50790502]
[1723880669863,0.00971526,2598.6,2598.5,11.30010502]
[1723880670061,0.00971526,2598.6,2598.5,18.22383502]
[1723880670371,1.0785,2599.2,2598.5,31.0232509]
[1723880670566,1.0785,2599.2,2599.1,6.24108]
[1723880670961,1.0785,2599.2,2599.1,10.46778]
[1723880671270,0.3631,2599.2,2599.1,11.47254229]
[1723880671466,0.36780527,2599.2,2599.1,10.46778]
[1723880678772,0.36780527,2599.2,2599.1,14.62530334]
[1723880682575,0.36780527,2599.2,2599.1,14.24580334]
[1723880682960,0.36780527,2599.2,2599.1,13.13580334]
[1723880683568,0.36780527,2599.2,2599.1,9.28860334]
[1723880683968,0.36780527,2599.2,2599.1,13.13580334]
[1723880684173,0.36780527,2599.2,2599.1,9.28860334]
[1723880685275,0.36780527,2599.2,2599.1,13.13580334]
[1723880686069,0.36780527,2599.2,2599.1,9.28860334]
[1723880687975,0.36780527,2599.2,2599.1,5.13108]
[1723880688179,0.36780527,2599.2,2599.1,3.2078]
[1723880688373,2.29101527,2599.2,2599.1,3.2078]
[1723880690172,2.39535604,2599.2,2599.1,3.2078]
[1723880690886,2.39535604,2599.2,2599.0,1.92335]
[1723880691082,0.7289,2599.1,2599.0,1.92335]
[1723880691375,0.7289,2599.1,2599.0,5.13115]
[1723880694484,0.7289,2599.1,2599.0,1.92335]
[1723880694681,0.7289,2599.1,2599.0,5.13115]
[1723880696579,0.7289,2599.1,2599.0,1.92335]
[1723880697081,0.7289,2599.1,2599.0,5.13115]
[1723880700183,0.7289,2599.1,2599.0,6.51231229]
[1723880700683,0.83323862,2599.1,2599.0,5.50755]
[1723880700888,0.83323853,2599.1,2599.0,5.50755]
[1723880701683,0.83323508,2599.1,2599.0,5.50755]
[1723880702976,0.83323497,2599.1,2599.0,5.50755]
[1723880703382,0.7289,2599.1,2599.0,9.54674725]
[1723880703583,0.7289,2599.1,2599.0,9.54680656]
[1723880704888,0.7289,2599.1,2599.0,10.04821752]
[1723880705188,0.7289,2599.1,2599.0,8.54104342]
[1723880705391,0.36780527,2599.2,2599.1,1.92328]
[1723880705682,0.36780527,2599.2,2599.1,2.92883909]
[1723880705894,0.47212863,2599.2,2599.1,2.92883909]
[1723880707477,0.36780527,2599.2,2599.1,2.92883909]
[1723880707677,0.47212736,2599.2,2599.1,2.92883909]
[1723880709288,0.47212736,2599.2,2599.1,6.13663909]
[1723880709883,0.47212736,2599.2,2599.1,7.05451565]
[1723880710084,0.47212736,2599.2,2599.1,8.06035731]
[1723880710386,0.47212736,2599.2,2599.1,7.05451565]
[1723880710591,0.10902736,2599.2,2599.1,14.33213909]
[1723880710886,0.00577212,2599.4,2599.3,1.92314]
[1723880711091,0.00577212,2599.4,2599.3,8.890875]
[1723880711289,0.00577212,2599.4,2599.3,22.28579336]
[1723880711482,0.00577212,2599.4,2599.3,20.62563401]
[1723880711686,0.01028451,2599.4,2599.3,20.62563401]
[1723880711889,0.01028451,2599.4,2599.3,20.99713401]
[1723880712099,0.01028451,2599.4,2599.3,63.80767864]
[1723880712391,0.01028451,2599.4,2599.3,65.45417659]
[1723880714091,0.01028451,2599.4,2599.3,65.45270605]
[1723880714395,0.01028451,2599.4,2599.3,68.66050605]
[1723880715388,0.01028451,2599.4,2599.3,17.9920655]
[1723880715588,0.01028451,2599.4,2599.3,19.1020655]
[1723880717595,0.01028451,2599.4,2599.3,21.0252055]
[1723880717789,0.01028451,2599.4,2599.3,19.1020655]
[1723880718200,0.01028451,2599.4,2599.3,17.09139808]
[1723880718696,0.01028451,2599.4,2599.3,19.10224419]
[1723880718900,0.01028451,2599.4,2599.3,17.09157677]
[1723880720096,0.01028451,2599.4,2599.3,16.74057677]
[1723880720300,0.01028451,2599.4,2599.3,10.99638229]
[1723880720490,5.88485549,2599.4,2599.3,3.2078]
[1723880720695,6.23165549,2599.4,2599.3,3.2078]
[1723880720996,6.58725549,2599.4,2599.3,3.2078]
[1723880724097,6.58725549,2599.4,2599.2,1.92321]
[1723880724303,0.46581098,2599.3,2599.2,1.92321]
[1723880724803,0.46581098,2599.3,2599.1,7.2463181]
[1723880725100,0.3615,2599.3,2599.1,7.2463181]
[1723880725304,0.10433178,2599.2,2599.1,6.24104]
[1723880725606,7.24189,2599.3,2599.1,4.3178]
[1723880725794,0.10433444,2599.2,2599.1,4.3178]
[1723880725997,2.02754444,2599.2,2599.1,3.2078]
[1723880726195,5.87474444,2599.2,2599.1,3.2078]
[1723880726500,3.95154015,2599.2,2599.1,3.2078]
[1723880726903,5.87475015,2599.2,2599.1,3.2078]
[1723880727903,3.95154015,2599.2,2599.1,5.13108]
[1723880729599,3.95153691,2599.2,2599.1,3.2078]
[1723880730001,5.87474691,2599.2,2599.1,3.2078]
[1723880730201,5.87475031,2599.2,2599.1,3.2078]
[1723880733799,5.77041,2599.2,2599.1,3.2078]
[1723880734001,5.87474945,2599.2,2599.1,3.2078]
[1723880735008,5.87474945,2599.2,2599.0,1.92331]
[1723880735306,0.44933945,2599.1,2599.0,1.92331]
[1723880735511,0.44933945,2599.1,2599.0,5.13111]
[1723880737607,0.44933945,2599.1,2599.0,5.47371]
[1723880737805,0.345,2599.1,2599.0,7.5889881]
[1723880738509,0.345,2599.1,2599.0,4.3811881]
[1723880738707,0.345,2599.1,2599.0,7.5889881]
[1723880740515,0.44932866,2599.1,2599.0,6.58371]
[1723880741214,0.44932866,2599.1,2599.0,7.5889881]
[1723880741417,0.44932866,2599.1,2599.0,6.58371]
[1723880742306,0.44932866,2599.1,2599.0,5.47371]
[1723880742516,0.345,2599.1,2599.0,5.47371]
[1723880742717,0.44933639,2599.1,2599.0,5.47371]
[1723880744315,0.4493396,2599.1,2599.0,5.47371]
[1723880744504,0.4493396,2599.1,2599.0,6.4789881]
[1723880744710,0.4493396,2599.1,2599.0,5.47371]
[1723880744913,0.4493396,2599.1,2599.0,2.26591]
[1723880745111,0.4493396,2599.1,2599.0,5.47371]
[1723880746022,0.345,2599.1,2599.0,6.4789881]
[1723880746615,0.44933343,2599.1,2599.0,6.4789881]
[1723880746916,0.4493334,2599.1,2599.0,5.47371]
[1723880747119,0.4493334,2599.1,2599.0,6.4789881]
[1723880747516,0.4493334,2599.1,2599.0,5.83541]
[1723880747715,0.4493334,2599.1,2599.0,6.8406881]
[1723880747921,0.1043334,2599.1,2599.0,6.8406881]
[1723880748419,0.1043334,2599.1,2599.0,5.83541]
[1723880751013,1.92322,2599.2,2599.1,1.92329]
[1723880751220,2.02756119,2599.2,2599.1,1.92329]
[1723880751418,5.77042,2599.2,2599.1,1.92329]
[1723880751714,5.87476131,2599.2,2599.1,5.13109]
[1723880752619,5.77042,2599.2,2599.1,5.13109]
[1723880752809,5.87475825,2599.2,2599.1,5.13109]
[1723880753006,3.95153825,2599.2,2599.1,5.13109]
[1723880754114,5.87474825,2599.2,2599.1,3.2078]
[1723880754322,1.92344,2598.9,2598.8,3.2078]
[1723880754513,3.13777825,2598.9,2598.8,3.2078]
[1723880754707,4.21217825,2598.9,2598.8,3.2078]
[1723880756014,8.06017825,2598.9,2598.8,3.2078]
[1723880756215,1.92366,2598.6,2598.5,3.2078]
[1723880756409,1.92373,2598.5,2598.3,0.00299486]
[1723880756609,3.01873,2598.5,2598.3,2.28635486]
[1723880757914,3.01873,2598.5,2598.3,0.36249486]
[1723880758220,3.01873,2598.5,2598.3,2.28636486]
[1723880760109,3.01873,2598.5,2598.4,3.2078]
[1723880760310,3.12312288,2598.5,2598.4,3.2078]
[1723880761016,3.12312288,2598.5,2598.3,2.28636486]
[1723880761218,3.01873,2598.5,2598.4,3.2078]
[1723880761522,3.12312277,2598.5,2598.4,3.2078]
[1723880762518,3.1231221,2598.5,2598.3,2.28636486]
[1723880762720,3.01873,2598.5,2598.3,2.28636486]
[1723880762922,3.01873,2598.5,2598.4,3.2078]
[1723880763418,3.12312442,2598.5,2598.4,3.2078]
[1723880764017,1.19939442,2598.5,2598.4,3.2078]
[1723880764217,1.095,2598.5,2598.4,4.3178]
[1723880764822,3.01873,2598.5,2598.4,4.3178]
[1723880766112,3.12311692,2598.5,2598.4,4.3178]
[1723880766520,3.12311692,2598.5,2598.4,3.2078]
[1723880766712,3.01873,2598.5,2598.4,3.2078]
[1723880767011,3.12312249,2598.5,2598.4,3.2078]
[1723880767815,3.12312259,2598.5,2598.4,3.2078]
[1723880769324,3.1231262,2598.5,2598.4,3.2078]
[1723880769525,3.01873,2598.5,2598.4,3.2078]
[1723880770725,0.354,2598.5,2598.4,5.13161]
[1723880770930,1.5140262,2598.9,2598.4,8.4368781]
[1723880770931,2.64237,2598.9,2598.4,8.4368781]
[1723880771120,2.64237,2598.9,2598.7,6.24138]
[1723880771321,2.64237,2598.9,2598.8,0.3726]
[1723880771520,2.74673467,2598.9,2598.8,0.3726]
[1723880771927,1.92351,2598.8,2598.7,3.2078]
[1723880772224,3.03351,2598.8,2598.6,1.92365]
[1723880772724,1.9236,2598.7,2598.5,2.29628]
[1723880772931,3.03354,2598.8,2598.6,1.92366]
[1723880773233,1.11,2598.8,2598.5,2.29628]
[1723880773437,3.03357,2598.8,2598.5,2.29628]
[1723880773630,1.92359,2598.7,2598.5,2.2963]
[1723880773932,3.03355,2598.8,2598.6,1.92366]
[1723880774134,1.92358,2598.7,2598.5,2.29629]
[1723880774927,1.11,2598.8,2598.5,0.3726]
[1723880775127,1.92358,2598.7,2598.5,2.29628]
[1723880775322,0.3792,2598.6,2598.5,2.29628]
[1723880775733,0.3792,2598.6,2598.5,0.3726]
[1723880775944,0.3792,2598.6,2598.5,2.29633]
[1723880776930,1.92373,2598.5,2598.4,3.2078]
[1723880777132,2.28193,2598.5,2598.4,3.2078]
[1723880780133,0.3582,2598.5,2598.4,3.2078]
[1723880780333,0.3582,2598.5,2598.4,5.1316]
[1723880780835,0.3582,2598.5,2598.4,6.2416]
[1723880781532,0.3582,2598.5,2598.4,4.3178]
[1723880782041,2.28193,2598.5,2598.4,4.3178]
[1723880782232,0.3582,2598.5,2598.4,4.3178]
[1723880782534,0.3582,2598.5,2598.4,3.2078]
[1723880782535,2.28193,2598.5,2598.4,3.2078]
[1723880783130,0.3582,2598.5,2598.4,3.2078]
[1723880786641,0.3582,2598.5,2598.3,3.03681486]
[1723880787134,0.3582,2598.5,2598.4,3.2078]
[1723880787645,0.3582,2598.5,2598.3,4.04209296]
[1723880788142,0.3582,2598.5,2598.4,3.2078]
[1723880789944,0.3582,2598.5,2598.4,5.1316]
[1723880790638,0.3582,2598.5,2598.4,1.9238]
[1723880790943,0.3582,2598.5,2598.4,5.1316]
[1723880791538,0.3582,2598.5,2598.4,3.2078]
[1723880792344,0.46258313,2598.5,2598.4,3.2078]
[1723880793640,0.3582,2598.5,2598.4,3.2078]
[1723880793943,0.3582,2598.5,2598.4,1.0052781]
[1723880794144,0.3582,2598.5,2598.4,4.2130781]
[1723880794342,0.46257437,2598.5,2598.4,4.2130781]
[1723880794741,0.46257437,2598.5,2598.4,1.0052781]
[1723880795345,0.46257437,2598.5,2598.4,3.2078]
[1723880795536,0.46257437,2598.5,2598.4,4.2130781]
[1723880796147,0.46257437,2598.5,2598.4,1.0052781]
[1723880796351,0.46257437,2598.5,2598.4,4.2130781]
[1723880797048,2.38630437,2598.5,2598.4,4.2130781]
[1723880797247,0.46257437,2598.5,2598.4,4.2130781]
[1723880798246,0.46257437,2598.5,2598.4,6.1370485]
[1723880798451,0.46257437,2598.5,2598.4,8.56321592]
[1723880798650,0.46257957,2598.5,2598.4,5.35540855]
[1723880799040,0.46257957,2598.5,2598.4,7.05556303]
[1723880799244,0.46257957,2598.5,2598.4,6.13977206]
[1723880799555,1.97660577,2598.5,2598.4,8.56320855]
[1723880799938,1.97660577,2598.5,2598.4,5.35540855]
[1723880800145,1.97660577,2598.5,2598.4,8.56320855]
[1723880801449,1.97661161,2598.5,2598.4,8.56320855]
[1723880801844,1.97661161,2598.5,2598.4,6.63940855]
[1723880802246,1.97661161,2598.5,2598.4,8.56320855]
[1723880802944,1.9766116,2598.5,2598.4,8.56320855]
[1723880803355,1.9766116,2598.5,2598.4,8.56326171]
[1723880803653,1.97661162,2598.5,2598.4,8.56326171]
[1723880803846,1.97661161,2598.5,2598.4,8.56326171]
[1723880804045,1.97661161,2598.5,2598.4,5.35546171]
[1723880804242,1.97661161,2598.5,2598.4,8.56326171]
[1723880804442,1.8722262,2598.5,2598.4,8.56326171]
[1723880804743,1.97661647,2598.5,2598.4,8.56326171]
[1723880805053,1.97661647,2598.5,2598.4,5.35546171]
[1723880805443,1.97661647,2598.5,2598.4,8.56326171]
[1723880805753,11.28011847,2598.5,2598.4,1.00916942]
[1723880805943,1.9238,2598.4,2598.3,1.01216428]
[1723880806249,4.04657688,2598.4,2598.3,1.01216428]
[1723880806839,4.04657688,2598.4,2598.3,0.00299486]
[1723880807150,3.94218661,2598.4,2598.3,0.00299486]
[1723880807348,4.28625414,2598.4,2598.3,0.00299486]
[1723880807649,5.39625414,2598.4,2598.3,0.00299486]
[1723880810450,9.00537697,2598.4,2598.3,0.00299486]
[1723880815050,6.98699036,2598.4,2598.3,0.00299486]
[1723880815357,9.00538537,2598.4,2598.3,0.00299486]
[1723880815656,6.98699876,2598.4,2598.3,0.00299486]
[1723880816154,6.98699661,2598.4,2598.3,0.00299486]
[1723880816352,8.49933948,2598.4,2598.3,0.00299486]
[1723880816650,4.65053839,2598.4,2598.3,0.00299486]
[1723880816949,8.49933839,2598.4,2598.3,0.35219486]
[1723880817152,3.13819552,2598.4,2598.3,0.35219486]
[1723880817350,4.65056644,2598.4,2598.3,0.35219486]
[1723880817545,3.13819552,2598.4,2598.3,0.35219486]
[1723880817949,3.5405696,2598.4,2598.3,0.35219486]
[1723880818252,3.13819552,2598.4,2598.3,0.35219486]
[1723880819952,4.65070482,2598.4,2598.3,0.35219486]
[1723880820149,3.13819552,2598.4,2598.3,0.35219486]
[1723880820652,6.98699552,2598.4,2598.3,0.35219486]
[1723880824254,3.13819552,2598.4,2598.3,0.35219486]
[1723880824654,6.98699552,2598.4,2598.3,0.35219486]
[1723880827858,6.9870129,2598.4,2598.3,0.35219486]
[1723880829355,10.92919951,2598.4,2598.3,0.00299486]
[1723880829762,11.16890225,2598.4,2598.3,0.00299486]
[1723880831265,9.15051564,2598.4,2598.3,0.00299486]
[1723880831559,8.8064,2598.4,2598.3,0.00299486]
[1723880831864,9.15051738,2598.4,2598.3,0.00299486]
[1723880832163,10.92738418,2598.4,2598.3,0.00299486]
[1723880832561,10.92738418,2598.4,2598.1,0.00577212]
[1723880832562,3.8479,2598.2,2598.1,0.00577212]
[1723880832760,5.06231216,2598.2,2598.1,0.00577212]
[1723880832966,10.92768418,2598.2,2598.1,0.00577212]
[1723880833163,11.28518418,2598.2,2598.1,0.00577212]
[1723880833663,8.25123418,2598.2,2598.1,0.01075946]
[1723880833870,0.10441216,2598.2,2598.1,6.13177946]
[1723880834166,0.10441216,2598.2,2598.1,5.21692888]
[1723880834366,0.10441216,2598.2,2598.1,10.17513672]
[1723880834565,0.10441216,2598.2,2598.1,10.67361282]
[1723880837067,0.10441216,2598.2,2598.1,6.82481282]
[1723880837265,0.10441216,2598.2,2598.1,13.88141282]
[1723880837671,0.10441216,2598.2,2598.1,10.84739282]
[1723880837863,3.13836216,2598.2,2598.1,1.36733491]
[1723880838064,4.65058525,2598.2,2598.1,1.36733491]
[1723880838462,4.65058525,2598.2,2598.1,0.35895946]
[1723880840570,4.54617309,2598.2,2598.1,0.35895946]
[1723880840870,4.65058408,2598.2,2598.1,0.35895946]
[1723880841062,4.65058085,2598.2,2598.1,0.35895946]
[1723880841662,4.65058085,2598.2,2598.1,1.36733491]
[1723880841868,4.65058003,2598.2,2598.1,1.36733491]
[1723880843465,4.65058003,2598.2,2598.1,0.35895946]
[1723880844270,4.65058003,2598.2,2598.1,1.36733491]
[1723880844578,4.65058262,2598.2,2598.1,0.35895946]
[1723880844865,4.65058262,2598.2,2598.1,1.36733491]
[1723880845265,4.54617309,2598.2,2598.1,3.29162316]
[1723880845465,4.65057515,2598.2,2598.1,1.36733491]
[1723880847572,3.13835206,2598.2,2598.1,1.36733491]
[1723880847776,3.50855206,2598.2,2598.1,1.36733491]
[1723880848168,3.50855206,2598.2,2598.1,1.01913491]
[1723880848675,5.42072202,2598.2,2598.1,0.01075946]
[1723880848877,5.52513682,2598.2,2598.1,0.01075946]
[1723880849476,5.52513682,2598.2,2598.1,1.01913491]
[1723880849664,5.52513682,2598.2,2598.1,4.22693491]
[1723880850270,5.52513651,2598.2,2598.1,1.01913491]
[1723880850470,5.52513651,2598.2,2598.1,4.22693491]
[1723880851275,5.52513346,2598.2,2598.1,4.22693491]
[1723880851979,5.52513346,2598.2,2598.1,1.01913491]
[1723880852278,5.76483711,2598.2,2598.1,4.22693491]
[1723880853573,5.52513346,2598.2,2598.1,6.1512973]
[1723880854981,5.52513272,2598.2,2598.1,6.1512973]
[1723880855481,5.42072202,2598.2,2598.1,3.2996973]
[1723880855683,5.52513243,2598.2,2598.1,3.2996973]
[1723880855981,5.52513243,2598.2,2598.1,6.5074973]
[1723880856175,3.50856041,2598.2,2598.1,5.49912185]
[1723880856475,3.50856041,2598.2,2598.1,7.00676737]
[1723880856666,3.50856041,2598.2,2598.1,7.00668921]
[1723880857479,5.52513243,2598.2,2598.1,6.50845758]
[1723880858574,5.52513243,2598.2,2598.1,6.50849684]
[1723880859571,5.52513243,2598.2,2598.1,3.30069684]
[1723880859771,5.52513138,2598.2,2598.1,3.30069684]
[1723880859972,5.52513138,2598.2,2598.1,6.50849684]
[1723880860172,5.52513138,2598.2,2598.1,7.00673803]
[1723880860173,3.50855936,2598.2,2598.1,7.00673803]
[1723880861083,3.50855936,2598.2,2598.1,3.79893803]
[1723880861277,3.50855936,2598.2,2598.1,6.50849736]
[1723880861472,5.52513138,2598.2,2598.1,6.50849736]
[1723880862675,5.52513138,2598.2,2598.1,3.30069736]
[1723880862979,3.50855936,2598.2,2598.1,5.49909251]
[1723880863180,5.52513138,2598.2,2598.1,6.50851053]
[1723880863381,3.50855936,2598.2,2598.1,7.00673803]
[1723880863584,5.52513138,2598.2,2598.1,6.50851364]
[1723880864485,5.42072202,2598.2,2598.1,6.50851364]
[1723880864680,5.5251347,2598.2,2598.1,6.50851364]
[1723880865774,5.5251347,2598.2,2598.1,6.508545]
[1723880865975,5.5251347,2598.2,2598.1,5.49912387]
[1723880866278,3.50856268,2598.2,2598.1,7.00676939]
[1723880866978,3.50856268,2598.2,2598.1,3.79896939]
[1723880867286,3.50856268,2598.2,2598.1,7.00676939]
[1723880867983,5.5251347,2598.2,2598.1,7.00676939]
[1723880868485,5.5251347,2598.2,2598.1,3.79896939]
[1723880868682,5.5251347,2598.2,2598.1,7.00676939]
[1723880869073,5.52513298,2598.2,2598.1,7.00676939]
[1723880869680,3.50854849,2598.2,2598.1,7.00676939]
[1723880870187,5.52512051,2598.2,2598.1,7.00676939]
[1723880870382,5.52512051,2598.2,2598.1,7.00672808]
[1723880870992,5.52512051,2598.2,2598.1,3.79892808]
[1723880871186,5.52512051,2598.2,2598.1,7.00672808]
[1723880871875,5.52512051,2598.2,2598.1,3.79892808]
[1723880872279,5.52512051,2598.2,2598.1,7.00672808]
[1723880874484,5.87762051,2598.2,2598.1,7.00672808]
[1723880875186,5.87762051,2598.2,2598.1,7.00672817]
[1723880875675,5.87762051,2598.2,2598.1,3.79892817]
[1723880876280,5.87762051,2598.2,2598.1,7.00672817]
[1723880876983,5.87762051,2598.2,2598.1,11.27190265]
[1723880876984,1.61840678,2598.2,2598.1,11.27190265]
[1723880877184,1.61840678,2598.2,2598.1,18.62334508]
[1723880877384,1.04890678,2598.5,2598.2,1.92395]
[1723880877579,2.01657202,2599.1,2599.0,1.92335]
[1723880877783,2.87998574,2599.2,2599.1,1.92328]
[1723880877784,0.3555,2599.2,2599.1,1.92328]
[1723880877984,0.45970906,2599.2,2599.1,3.43666871]
[1723880878188,0.10420906,2599.2,2599.1,7.15530162]
[1723880878386,0.01028451,2599.4,2599.3,1.92313]
[1723880878593,0.11448055,2599.4,2599.3,9.17138874]
[1723880878888,0.11448055,2599.4,2599.3,8.16419926]
[1723880879089,0.11448055,2599.4,2599.3,7.2481363]
[1723880879291,0.11448055,2599.4,2599.3,6.24093]
[1723880879476,0.11448543,2599.4,2599.3,6.24093]
[1723880879887,0.01028451,2599.4,2599.3,6.24093]
[1723880880289,0.11448636,2599.4,2599.3,6.24093]
[1723880880479,0.01028451,2599.4,2599.3,7.2481363]
[1723880880786,0.01028451,2599.4,2599.3,11.0953363]
[1723880880987,0.01028451,2599.4,2599.3,8.97813]
[1723880885694,0.01028451,2599.4,2599.3,10.08813]
[1723880885888,0.01028451,2599.4,2599.3,19.13008282]
[1723880886091,0.3754,2600.1,2600.0,1.92261]
[1723880886285,1.8504,2600.2,2600.0,1.92261]
[1723880886486,1.8504,2600.2,2599.8,3.2078]
[1723880886487,1.11,2600.1,2599.9,1.92264]
[1723880886686,1.11,2600.1,2599.9,2.29854]
[1723880887087,1.11496879,2600.1,2599.9,2.30284004]
[1723880887696,1.11,2600.0,2599.9,2.30284004]
[1723880887883,3.03262,2600.0,2599.9,0.00430004]
[1723880888086,6.87902,2600.0,2599.9,0.00430004]
[1723880888287,7.25442,2600.0,2599.9,0.00430004]
[1723880894492,3.40802,2600.0,2599.9,0.00430004]
[1723880903797,2.29802,2600.0,2599.9,0.00430004]
[1723880907108,0.3754,2600.0,2599.9,0.00430004]
[1723880908112,1.4854,2600.0,2599.9,0.00430004]
[1723880909309,0.3754,2600.0,2599.9,1.92699004]
[1723880909512,1.11496879,2600.1,2599.9,1.92699004]
[1723880909705,1.11496879,2600.1,2599.9,0.00430004]
[1723880909706,1.11,2600.0,2599.9,0.00430004]
[1723880911011,3.03262,2600.0,2599.9,0.00430004]
[1723880915510,1.11,2600.0,2599.9,0.00430004]
[1723880915716,1.92755879,2600.1,2599.9,0.00430004]
[1723880915914,3.03755879,2600.1,2599.9,0.00430004]
[1723880916112,3.03755879,2600.1,2599.9,1.92698004]
[1723880916314,3.03755879,2600.1,2599.9,0.00430004]
[1723880917017,1.92262,2600.0,2599.9,0.00430004]
[1723880917413,3.03755879,2600.1,2599.9,0.00430004]
[1723880917807,1.92262,2600.0,2599.9,0.00430004]
[1723880918513,3.03262,2600.0,2599.9,0.00430004]
[1723880922421,3.13678319,2600.0,2599.9,0.00430004]
[1723880922712,3.13678337,2600.0,2599.9,0.00430004]
[1723880923221,3.13678304,2600.0,2599.9,0.00430004]
[1723880924019,3.13678706,2600.0,2599.9,0.00430004]
[1723880926921,3.13678731,2600.0,2599.9,0.00430004]
[1723880927424,5.15335933,2600.0,2599.9,0.00430004]
[1723880930317,5.15335933,2600.0,2599.9,1.01150634]
[1723880931420,3.13678669,2600.0,2599.9,1.01150634]
[1723880932124,2.02678669,2600.0,2599.9,1.01150634]
[1723880932320,4.04484191,2600.0,2599.9,2.93448919]
[1723880933421,4.04484191,2600.0,2599.9,1.92728289]
[1723880933821,4.04484191,2600.0,2599.9,3.43806712]
[1723880934415,2.12222191,2600.0,2599.9,5.36075712]
[1723880934826,0.10416669,2600.0,2599.9,10.31715712]
[1723880935026,0.10416669,2600.0,2599.9,8.80637289]
[1723880935223,0.10416669,2600.0,2599.9,12.96379272]
[1723880935418,0.10416669,2600.0,2599.9,15.48624416]
[1723880936431,0.00496879,2600.1,2600.0,1.92261]
[1723880936632,0.10909779,2600.1,2600.0,9.70596386]
[1723880936832,0.10909779,2600.1,2600.0,13.55127693]
[1723880937333,0.10909779,2600.1,2600.0,9.70596386]
[1723880937530,0.10909779,2600.1,2600.0,5.69887558]
[1723880937724,0.10909779,2600.1,2600.0,9.54527558]
[1723880937927,0.10909779,2600.1,2600.0,5.69890718]
[1723880938727,0.45789779,2600.1,2600.0,5.69890718]
[1723880940433,0.45791139,2600.1,2600.0,5.69890718]
[1723880940631,0.4579124,2600.1,2600.0,5.69890718]
[1723880940935,0.1091124,2600.1,2600.0,9.14470792]
[1723880941628,0.1091124,2600.1,2600.0,10.65464373]
[1723880941937,0.1091124,2600.1,2600.0,9.14470792]
[1723880942422,0.3707,2600.2,2600.1,1.92254]
[1723880942626,0.3707,2600.2,2600.1,8.16313792]
[1723880942827,0.3707,2600.2,2600.1,12.00873792]
[1723880943226,0.00573354,2600.3,2600.2,1.92247]
[1723880943527,0.00847665,2600.3,2600.2,5.35455035]
[1723880943829,0.00847665,2600.3,2600.2,8.69712093]
[1723880944026,0.00847665,2600.3,2600.2,2.92872301]
[1723880947227,0.00847665,2600.3,2600.2,4.8513611]
[1723880947639,0.00847665,2600.3,2600.2,2.92872301]